{"text_format":"1","workbook":"xlsx","n_sheets":2,"sheets":["認知書","取り込み"],"not_rendered":{"charts":0,"images":0,"macros":1,"external_links":0,"defined_names":2,"comments":0,"pivot_tables":0},"unopened":[],"bounds":{"document_bytes":16777216,"sheet_cells":100000,"rows_first":2000,"rows_last":500,"rows_between":2000,"halvings":0,"cell_chars":16384,"cell_head_chars":4096},"cells_cut":0,"cells_raw":0,"read":"whole","date_system":"1900"}

{"sheet":"認知書","index":0,"n_rows":95,"n_cols":36,"rows_kept":95,"cut":false,"hidden":false,"merged":[[56,20,56,23],[84,20,84,23],[85,19,85,23],[86,20,86,23],[26,20,26,23],[54,20,54,23],[55,19,55,23],[59,19,61,23],[64,20,64,21],[57,20,57,21],[37,20,37,22],[38,20,38,22],[34,20,34,21],[87,20,87,21],[89,19,91,23],[94,20,94,21],[67,20,67,22],[68,20,68,22],[0,19,0,20],[2,0,4,0],[2,1,4,1],[2,2,4,2],[2,3,4,3],[2,4,4,4],[2,5,4,5],[2,6,2,17],[3,6,3,8],[3,9,3,10],[3,11,3,12],[3,13,3,14],[7,20,7,22],[8,20,8,22],[27,20,27,21],[29,19,31,23],[24,20,24,23],[25,19,25,23]]}
[{"$f":"\"第\" & AA1 & \"回近畿高等学校新人水泳競技大会\"","v":"第10回近畿高等学校新人水泳競技大会"},null,null,null,null,null,"参加種目別一覧表及び学校長認知書",null,null,null,null,null,null,null,null,null,null,null,null,"登録団体番号",null,"25●●●",null,null,null,"第",10,"回",null,null,{"$f":"AH3+ROUNDUP(AJ3/30,0)","v":0},"枚中の",1,"枚目"]
[]
["No.","選手名前","フリガナ","生年月日","学年","性別","競　泳　出　場　種　目",null,null,null,null,null,null,null,null,null,null,null,null,null,null,null,null,null,null,null,null,null,null,null,{"$f":"V13","v":0},"人","÷30",{"$f":"INT(AE3/30)","v":0},"余り",{"$f":"MOD(AE3,30)","v":0}]
[null,null,null,null,null,null,"自由形",null,null,"背泳ぎ",null,"バタフライ",null,"平泳ぎ",null,"個人\nメドレー","フリー\nリレー","メドレー\nリレー",null,"加盟\n団体",25,{"$f":"IFERROR(VLOOKUP(U4,AC6:AD11,2,FALSE),\"\")","v":"滋賀"}]
[null,null,null,null,null,null,50,100,400,50,100,50,100,50,100,200,"4×100","4×100"]
[1,null,null,null,null,null,null,null,null,null,null,null,null,null,null,null,null,null,null,null,null,null,null,null,null,null,null,null,25,"滋賀"]
[2,null,null,null,null,null,null,null,null,null,null,null,null,null,null,null,null,null,null,null,null,null,null,{"$f":"AE1 & \"枚中の1枚目\"","v":"0枚中の1枚目"},null,null,null,null,26,"京都"]
[3,null,null,null,null,null,null,null,null,null,null,null,null,null,null,null,null,null,null,"ふりがな",null,null,null,null,null,null,null,null,27,"大阪"]
[4,null,null,null,null,null,null,null,null,null,null,null,null,null,null,null,null,null,null,"学校名",null,null,null,null,null,null,null,null,28,"兵庫"]
[5,null,null,null,null,null,null,null,null,null,null,null,null,null,null,null,null,null,null,null,null,null,null,null,null,null,null,null,29,"奈良"]
[6,null,null,null,null,null,null,null,null,null,null,null,null,null,null,null,null,null,null,"参加人数","男子",null,"名",null,null,null,null,null,30,"和歌山"]
[7,null,null,null,null,null,null,null,null,null,null,null,null,null,null,null,null,null,null,null,"女子",null,"名"]
[8,null,null,null,null,null,null,null,null,null,null,null,null,null,null,null,null,null,null,null,"合計",{"$f":"SUM(V11,V12)","v":0},"名",null,null,null,"〇","漢数字"]
[9,null,null,null,null,null,null,null,null,null,null,null,null,null,null,null,null,null,null,null,null,null,null,null,null,null,"○","記号"]
[10,null,null,null,null,null,null,null,null,null,null,null,null,null,null,null,null,null,null,"①　参加料合計"]
[11,null,null,null,null,null,null,null,null,null,null,null,null,null,null,null,null,null,null,null,"合計",{"$f":"V13*AC16","v":0},"円",null,null,null,"参加料","１名",2500]
[12]
[13,null,null,null,null,null,null,null,null,null,null,null,null,null,null,null,null,null,null,"②　プログラム代"]
[14,null,null,null,null,null,null,null,null,null,null,null,null,null,null,null,null,null,null,1,"部",{"$f":"T19*AC19","v":1000},"円",null,null,null,"プログラム","１部",1000]
[15]
[16,null,null,null,null,null,null,null,null,null,null,null,null,null,null,null,null,null,null,"①＋②　合計"]
[17,null,null,null,null,null,null,null,null,null,null,null,null,null,null,null,null,null,null,null,null,{"$f":"SUM(V16,V19)","v":1000},"円"]
[18]
[19,null,null,null,null,null,null,null,null,null,null,null,null,null,null,null,null,null,null,"住所，TEL，引率教諭・印"]
[20,null,null,null,null,null,null,null,null,null,null,null,null,null,null,null,null,null,null,"〒"]
[21]
[22,null,null,null,null,null,null,null,null,null,null,null,null,null,null,null,null,null,null,"TEL"]
[23,null,null,null,null,null,null,null,null,null,null,null,null,null,null,null,null,null,null,null,null,null,null,"印"]
[24]
[25,null,null,null,null,null,null,null,null,null,null,null,null,null,null,null,null,null,null,"　左記の者は本校在学生徒で，標記大会に出場することを認めます。\nなお，大会期間中（前日含む）に宿泊する場合は，指定斡旋業者を利用します。"]
[26]
[27]
[28,null,null,null,null,null,null,null,null,null,null,null,null,null,null,null,null,null,null,"2026年",null,"月",null,"日"]
[29]
[30,null,null,null,null,null,null,null,null,null,null,null,null,null,null,null,null,null,null,"学校長",null,null,"印"]
[31]
[32,null,null,null,null,null,null,null,null,null,null,null,null,null,null,null,null,null,null,null,null,null,null,{"$f":"AE1 & \"枚中の2枚目\"","v":"0枚中の2枚目"}]
[33,null,null,null,null,null,null,null,null,null,null,null,null,null,null,null,null,null,null,"ふりがな",{"$f":"U8","v":0}]
[34,null,null,null,null,null,null,null,null,null,null,null,null,null,null,null,null,null,null,"学校名","奈良県立若草山高等学校"]
[35]
[36,null,null,null,null,null,null,null,null,null,null,null,null,null,null,null,null,null,null,"参加人数","男子",4,"名"]
[37,null,null,null,null,null,null,null,null,null,null,null,null,null,null,null,null,null,null,null,"女子",2,"名"]
[38,null,null,null,null,null,null,null,null,null,null,null,null,null,null,null,null,null,null,null,"合計",{"$f":"SUM(V41,V42)","v":6},"名"]
[39]
[40,null,null,null,null,null,null,null,null,null,null,null,null,null,null,null,null,null,null,"①　参加料合計"]
[41,null,null,null,null,null,null,null,null,null,null,null,null,null,null,null,null,null,null,null,"合計",{"$f":"V16","v":0},"円"]
[42]
[43,null,null,null,null,null,null,null,null,null,null,null,null,null,null,null,null,null,null,"②　プログラム代"]
[44,null,null,null,null,null,null,null,null,null,null,null,null,null,null,null,null,null,null,{"$f":"T19","v":1},"部",{"$f":"V19","v":1000},"円"]
[45]
[46,null,null,null,null,null,null,null,null,null,null,null,null,null,null,null,null,null,null,"①＋②　合計"]
[47,null,null,null,null,null,null,null,null,null,null,null,null,null,null,null,null,null,null,null,null,{"$f":"SUM(V46,V49)","v":1000},"円"]
[48]
[49,null,null,null,null,null,null,null,null,null,null,null,null,null,null,null,null,null,null,"住所，TEL，引率教諭・印"]
[50,null,null,null,null,null,null,null,null,null,null,null,null,null,null,null,null,null,null,"〒",{"$f":"U25","v":0}]
[51,null,null,null,null,null,null,null,null,null,null,null,null,null,null,null,null,null,null,{"$f":"T26","v":0}]
[52,null,null,null,null,null,null,null,null,null,null,null,null,null,null,null,null,null,null,"TEL",{"$f":"U27","v":0}]
[53,null,null,null,null,null,null,null,null,null,null,null,null,null,null,null,null,null,null,null,{"$f":"U28","v":0},null,null,"印"]
[54]
[55,null,null,null,null,null,null,null,null,null,null,null,null,null,null,null,null,null,null,"　左記の者は本校在学生徒で，標記大会に出場することを認めます。\nなお，大会期間中（前日含む）に宿泊する場合は，指定斡旋業者を利用します。"]
[56]
[57]
[58,null,null,null,null,null,null,null,null,null,null,null,null,null,null,null,null,null,null,"2026年",{"$f":"U33","v":0},"月",{"$f":"W33","v":0},"日"]
[59]
[60,null,null,null,null,null,null,null,null,null,null,null,null,null,null,null,null,null,null,"学校長",{"$f":"U35","v":0},null,"印"]
[61]
[62,null,null,null,null,null,null,null,null,null,null,null,null,null,null,null,null,null,null,null,null,null,null,{"$f":"AE1 & \"枚中の3枚目\"","v":"0枚中の3枚目"}]
[63,null,null,null,null,null,null,null,null,null,null,null,null,null,null,null,null,null,null,"ふりがな",{"$f":"U38","v":0}]
[64,null,null,null,null,null,null,null,null,null,null,null,null,null,null,null,null,null,null,"学校名","奈良県立若草山高等学校"]
[65]
[66,null,null,null,null,null,null,null,null,null,null,null,null,null,null,null,null,null,null,"参加人数","男子",4,"名"]
[67,null,null,null,null,null,null,null,null,null,null,null,null,null,null,null,null,null,null,null,"女子",2,"名"]
[68,null,null,null,null,null,null,null,null,null,null,null,null,null,null,null,null,null,null,null,"合計",{"$f":"SUM(V71,V72)","v":6},"名"]
[69]
[70,null,null,null,null,null,null,null,null,null,null,null,null,null,null,null,null,null,null,"①　参加料合計"]
[71,null,null,null,null,null,null,null,null,null,null,null,null,null,null,null,null,null,null,null,"合計",{"$f":"V46","v":0},"円"]
[72]
[73,null,null,null,null,null,null,null,null,null,null,null,null,null,null,null,null,null,null,"②　プログラム代"]
[74,null,null,null,null,null,null,null,null,null,null,null,null,null,null,null,null,null,null,{"$f":"T49","v":1},"部",{"$f":"V49","v":1000},"円"]
[75]
[76,null,null,null,null,null,null,null,null,null,null,null,null,null,null,null,null,null,null,"①＋②　合計"]
[77,null,null,null,null,null,null,null,null,null,null,null,null,null,null,null,null,null,null,null,null,{"$f":"SUM(V76,V79)","v":1000},"円"]
[78]
[79,null,null,null,null,null,null,null,null,null,null,null,null,null,null,null,null,null,null,"住所，TEL，引率教諭・印"]
[80,null,null,null,null,null,null,null,null,null,null,null,null,null,null,null,null,null,null,"〒",{"$f":"U55","v":0}]
[81,null,null,null,null,null,null,null,null,null,null,null,null,null,null,null,null,null,null,{"$f":"T56","v":0}]
[82,null,null,null,null,null,null,null,null,null,null,null,null,null,null,null,null,null,null,"TEL",{"$f":"U57","v":0}]
[83,null,null,null,null,null,null,null,null,null,null,null,null,null,null,null,null,null,null,null,{"$f":"U58","v":0},null,null,"印"]
[84]
[85,null,null,null,null,null,null,null,null,null,null,null,null,null,null,null,null,null,null,"　左記の者は本校在学生徒で，標記大会に出場することを認めます。\nなお，大会期間中（前日含む）に宿泊する場合は，指定斡旋業者を利用します。"]
[86]
[87]
[88,null,null,null,null,null,null,null,null,null,null,null,null,null,null,null,null,null,null,"2026年",{"$f":"U63","v":0},"月",{"$f":"W63","v":0},"日"]
[89]
[90,null,null,null,null,null,null,null,null,null,null,null,null,null,null,null,null,null,null,"学校長",{"$f":"U65","v":0},null,"印"]

{"sheet":"取り込み","index":1,"n_rows":0,"n_cols":0,"rows_kept":0,"cut":false,"hidden":false,"merged":[]}